[Event "Early-Titled-Tuesday-Blitz-April-02-2024"]
[Site "Chess.com"]
[Date "2024.04.02"]
[Round "7"]
[White "ilqar_74"]
[Black "Dixit_Nikhil"]
[Result "1/2-1/2"]
[WhiteElo "2805"]
[BlackElo "2648"]
[TimeControl "180+1"]
[EndTime "9:20:32 PDT"]
[Termination "Game drawn by repetition"]

1. e4 {[%clk 0:02:58.7]} 1... c5 {[%clk 0:02:52.6]} 2. Nf3 {[%clk 0:02:57.7]}
2... Nc6 {[%clk 0:02:53.3]} 3. d4 {[%clk 0:02:57.5]} 3... cxd4 {[%clk
0:02:53.5]} 4. Nxd4 {[%clk 0:02:58.4]} 4... Nf6 {[%clk 0:02:54.1]} 5. Nc3 {[%clk
0:02:58.5]} 5... e5 {[%clk 0:02:54.6]} 6. Ndb5 {[%clk 0:02:57.8]} 6... d6 {[%clk
0:02:55.1]} 7. Bg5 {[%clk 0:02:57.7]} 7... a6 {[%clk 0:02:54.8]} 8. Bxf6 {[%clk
0:02:57.8]} 8... gxf6 {[%clk 0:02:54.3]} 9. Na3 {[%clk 0:02:57.2]} 9... b5
{[%clk 0:02:54.3]} 10. Nd5 {[%clk 0:02:56.5]} 10... Bg7 {[%clk 0:02:54.2]} 11.
c4 {[%clk 0:02:54]} 11... Ne7 {[%clk 0:02:53.5]} 12. Nc2 {[%clk 0:02:43.3]}
12... O-O {[%clk 0:02:46.3]} 13. Nxe7+ {[%clk 0:02:38.4]} 13... Qxe7 {[%clk
0:02:46.3]} 14. Ne3 {[%clk 0:02:39]} 14... Be6 {[%clk 0:02:46.1]} 15. b3 {[%clk
0:02:26.3]} 15... Bh6 {[%clk 0:02:41.4]} 16. Nd5 {[%clk 0:02:21.1]} 16... Bxd5
{[%clk 0:02:32.6]} 17. Qxd5 {[%clk 0:02:19.5]} 17... Rfb8 {[%clk 0:02:14.6]} 18.
Be2 {[%clk 0:02:15.2]} 18... Qb7 {[%clk 0:02:10.5]} 19. Rd1 {[%clk 0:02:14]}
19... Qxd5 {[%clk 0:02:09.5]} 20. Rxd5 {[%clk 0:02:14.9]} 20... Bf8 {[%clk
0:02:08.7]} 21. O-O {[%clk 0:02:13.4]} 21... b4 {[%clk 0:02:05.1]} 22. Rfd1
{[%clk 0:02:12.6]} 22... a5 {[%clk 0:02:04.3]} 23. R1d3 {[%clk 0:02:08.2]} 23...
a4 {[%clk 0:02:04.1]} 24. Rg3+ {[%clk 0:02:06.7]} 24... Kh8 {[%clk 0:02:04.7]}
25. Bd1 {[%clk 0:02:03.9]} 25... axb3 {[%clk 0:02:04.4]} 26. Bxb3 {[%clk
0:02:04.8]} 26... Rc8 {[%clk 0:01:56.6]} 27. h3 {[%clk 0:01:56.3]} 27... Rc5
{[%clk 0:01:56.1]} 28. Rdd3 {[%clk 0:01:56.3]} 28... Rd8 {[%clk 0:01:51.3]} 29.
Rgf3 {[%clk 0:01:56.1]} 29... Be7 {[%clk 0:01:48.4]} 30. g3 {[%clk 0:01:53.4]}
30... Rg8 {[%clk 0:01:47.7]} 31. Kg2 {[%clk 0:01:53.3]} 31... Ra8 {[%clk
0:01:48.2]} 32. Rd1 {[%clk 0:01:51.9]} 32... Kg7 {[%clk 0:01:48.7]} 33. Rfd3
{[%clk 0:01:51.5]} 33... h6 {[%clk 0:01:48.5]} 34. Rb1 {[%clk 0:01:51.1]} 34...
Rb8 {[%clk 0:01:47.9]} 35. Rd2 {[%clk 0:01:50.6]} 35... Ra5 {[%clk 0:01:47.9]}
36. Bd1 {[%clk 0:01:43.3]} 36... Ra3 {[%clk 0:01:41.3]} 37. Bb3 {[%clk
0:01:39.7]} 37... Rb6 {[%clk 0:01:38.9]} 38. f4 {[%clk 0:01:38.3]} 38... Rb8
{[%clk 0:01:37.4]} 39. Rf1 {[%clk 0:01:33.7]} 39... Ra6 {[%clk 0:01:30.4]} 40.
h4 {[%clk 0:01:20.3]} 40... Ra5 {[%clk 0:01:28.9]} 41. Rf3 {[%clk 0:01:18.3]}
41... Ra6 {[%clk 0:01:28.9]} 42. Rd5 {[%clk 0:01:12.2]} 42... Rc6 {[%clk
0:01:25]} 43. fxe5 {[%clk 0:01:06.7]} 43... dxe5 {[%clk 0:01:20.9]} 44. Rd7
{[%clk 0:01:03.9]} 44... Kf8 {[%clk 0:01:05.1]} 45. Rfd3 {[%clk 0:01:03.3]}
45... Rbb6 {[%clk 0:01:01.1]} 46. Ra7 {[%clk 0:00:54]} 46... Ra6 {[%clk
0:00:54.4]} 47. Rb7 {[%clk 0:00:51.4]} 47... Rab6 {[%clk 0:00:51.4]} 48. Rbd7
{[%clk 0:00:40.4]} 48... Rd6 {[%clk 0:00:49.9]} 49. Kf3 {[%clk 0:00:19.6]} 49...
Rxd3+ {[%clk 0:00:45.5]} 50. Rxd3 {[%clk 0:00:19.3]} 50... Rd6 {[%clk
0:00:46.2]} 51. Rd5 {[%clk 0:00:19.1]} 51... Rxd5 {[%clk 0:00:44.4]} 52. cxd5
{[%clk 0:00:19.7]} 52... Bc5 {[%clk 0:00:42.1]} 53. Kg4 {[%clk 0:00:19.4]} 53...
Ke7 {[%clk 0:00:41.7]} 54. Kh5 {[%clk 0:00:18.4]} 54... Be3 {[%clk 0:00:41.6]}
55. Kg4 {[%clk 0:00:17.7]} 55... Bf2 {[%clk 0:00:41.4]} 56. Kf3 {[%clk
0:00:17.8]} 56... Be1 {[%clk 0:00:41.6]} 57. Bc4 {[%clk 0:00:15.8]} 57... Kd6
{[%clk 0:00:38.4]} 58. Bb5 {[%clk 0:00:15.7]} 58... Ke7 {[%clk 0:00:36.6]} 59.
Ba4 {[%clk 0:00:15.9]} 59... Kd6 {[%clk 0:00:36.9]} 60. h5 {[%clk 0:00:14.9]}
60... Ke7 {[%clk 0:00:35.1]} 61. g4 {[%clk 0:00:15.5]} 61... Kd6 {[%clk
0:00:34.8]} 62. Ke2 {[%clk 0:00:16]} 62... Bh4 {[%clk 0:00:34.1]} 63. Kd3 {[%clk
0:00:16.3]} 63... Kc5 {[%clk 0:00:30.7]} 64. Be8 {[%clk 0:00:15.4]} 64... Bg5
{[%clk 0:00:30.2]} 65. Bxf7 {[%clk 0:00:15.1]} 65... Bf4 {[%clk 0:00:30.5]} 66.
Be8 {[%clk 0:00:13]} 66... Bg5 {[%clk 0:00:30.8]} 67. Kc2 {[%clk 0:00:11.2]}
67... Bf4 {[%clk 0:00:30.6]} 68. Kb3 {[%clk 0:00:11.4]} 68... Be3 {[%clk
0:00:24.2]} 69. d6 {[%clk 0:00:10.5]} 69... Kxd6 {[%clk 0:00:20.6]} 70. Kxb4
{[%clk 0:00:10.8]} 70... Bd4 {[%clk 0:00:20.4]} 71. Kb5 {[%clk 0:00:10.3]} 71...
Be3 {[%clk 0:00:20]} 72. a4 {[%clk 0:00:10]} 72... Bd4 {[%clk 0:00:20]} 73. a5
{[%clk 0:00:10.2]} 73... Be3 {[%clk 0:00:20.3]} 74. Ka6 {[%clk 0:00:09.7]} 74...
Kc7 {[%clk 0:00:20.6]} 75. Ba4 {[%clk 0:00:10]} 75... Bd4 {[%clk 0:00:20.7]} 76.
Bb3 {[%clk 0:00:10.3]} 76... Be3 {[%clk 0:00:21.1]} 77. Bd5 {[%clk 0:00:09.6]}
77... Bd4 {[%clk 0:00:21.5]} 78. Kb5 {[%clk 0:00:10.2]} 78... Be3 {[%clk
0:00:21.8]} 79. Bb3 {[%clk 0:00:10.5]} 79... Kd6 {[%clk 0:00:22.3]} 80. Bc2
{[%clk 0:00:09.4]} 80... Bd4 {[%clk 0:00:22.6]} 81. Kc4 {[%clk 0:00:09.4]} 81...
Be3 {[%clk 0:00:22.6]} 82. Ba4 {[%clk 0:00:09.2]} 82... Bd2 {[%clk 0:00:21]} 83.
a6 {[%clk 0:00:08.9]} 83... Be3 {[%clk 0:00:21.5]} 84. Be8 {[%clk 0:00:09]}
84... Bd4 {[%clk 0:00:21.6]} 85. Kb5 {[%clk 0:00:09.1]} 85... Ba7 {[%clk
0:00:22.2]} 86. Bg6 {[%clk 0:00:09.2]} 86... Bd4 {[%clk 0:00:22.8]} 87. Kc4
{[%clk 0:00:09.6]} 87... Ba7 {[%clk 0:00:23.4]} 88. Kd3 {[%clk 0:00:10.2]} 88...
Bd4 {[%clk 0:00:24.1]} 89. Be8 {[%clk 0:00:10.4]} 89... Ba7 {[%clk 0:00:24.6]}
90. Ke2 {[%clk 0:00:10.9]} 90... Bd4 {[%clk 0:00:25.2]} 91. Kf3 {[%clk
0:00:10.7]} 91... Ba7 {[%clk 0:00:25.7]} 92. Bb5 {[%clk 0:00:11.1]} 92... Bd4
{[%clk 0:00:26.1]} 93. Be2 {[%clk 0:00:11.4]} 93... Ba7 {[%clk 0:00:26.2]} 94.
g5 {[%clk 0:00:11.7]} 94... fxg5 {[%clk 0:00:26.1]} 95. Kg4 {[%clk 0:00:12.6]}
95... Ke6 {[%clk 0:00:23.3]} 96. Bc4+ {[%clk 0:00:11]} 96... Kf6 {[%clk
0:00:23.9]} 97. Be2 {[%clk 0:00:11.4]} 97... Bb6 {[%clk 0:00:24.5]} 98. Bc4
{[%clk 0:00:11.3]} 98... Ba7 {[%clk 0:00:25.1]} 99. Kf3 {[%clk 0:00:11.6]} 99...
Bb6 {[%clk 0:00:25.7]} 100. Be2 {[%clk 0:00:11.9]} 100... Ba7 {[%clk 0:00:25.4]}
101. Bd1 {[%clk 0:00:12.1]} 101... Bb6 {[%clk 0:00:25.5]} 102. Kg2 {[%clk
0:00:12.7]} 102... Ke7 {[%clk 0:00:25.9]} 103. Kh3 {[%clk 0:00:12.4]} 103... Ba7
{[%clk 0:00:26.2]} 104. Bg4 {[%clk 0:00:11.6]} 104... Kf6 {[%clk 0:00:26.2]}
105. Kg3 {[%clk 0:00:12.3]} 105... Ke7 {[%clk 0:00:26.8]} 106. Kf3 {[%clk
0:00:12.7]} 106... Kd6 {[%clk 0:00:27.2]} 107. Bc8 {[%clk 0:00:12.2]} 107... Ke7
{[%clk 0:00:27.5]} 108. Ke2 {[%clk 0:00:12.2]} 108... Bb6 {[%clk 0:00:27.9]}
109. Kd3 {[%clk 0:00:12.7]} 109... Kd6 {[%clk 0:00:28.5]} 110. Kc4 {[%clk
0:00:13.1]} 110... Ba7 {[%clk 0:00:29.1]} 111. Bg4 {[%clk 0:00:13.6]} 111... Bb6
{[%clk 0:00:29.2]} 112. Kb5 {[%clk 0:00:14]} 112... Ba7 {[%clk 0:00:30.1]} 113.
Bf5 {[%clk 0:00:13.8]} 113... Bd4 {[%clk 0:00:30.7]} 114. Bc8 {[%clk 0:00:13.9]}
114... Ba7 {[%clk 0:00:31.3]} 115. Kc4 {[%clk 0:00:14.2]} 115... Be3 {[%clk
0:00:31.3]} 116. Kd3 {[%clk 0:00:14.5]} 116... Ba7 {[%clk 0:00:31.8]} 117. Ke2
{[%clk 0:00:15.1]} 117... Ke7 {[%clk 0:00:32.1]} 118. Kf3 {[%clk 0:00:15.3]}
118... Kf6 {[%clk 0:00:32.4]} 119. Kg4 {[%clk 0:00:15.9]} 119... Bb6 {[%clk
0:00:32.8]} 120. Bb7 {[%clk 0:00:16.2]} 120... Ba7 {[%clk 0:00:33.3]} 121. Bd5
{[%clk 0:00:16.8]} 121... Bb6 {[%clk 0:00:33.8]} 122. Bc4 {[%clk 0:00:17.2]}
122... Ba7 {[%clk 0:00:34.7]} 1/2-1/2

[Event "Early-Titled-Tuesday-Blitz-April-02-2024"]
[Site "Chess.com"]
[Date "2024.04.02"]
[Round "7"]
[White "XDPS"]
[Black "FREDERICKtheMATE"]
[Result "1/2-1/2"]
[WhiteElo "2911"]
[BlackElo "2699"]
[TimeControl "180+1"]
[EndTime "9:21:05 PDT"]
[Termination "Game drawn by 50-move rule"]

1. d4 {[%clk 0:03:00.9]} 1... c6 {[%clk 0:03:00.9]} 2. Bf4 {[%clk 0:02:58.6]}
2... d5 {[%clk 0:03:01.8]} 3. e3 {[%clk 0:02:58.9]} 3... Bf5 {[%clk 0:03:00.3]}
4. c4 {[%clk 0:02:59.2]} 4... e6 {[%clk 0:03:00]} 5. Qb3 {[%clk 0:02:57.5]} 5...
Qb6 {[%clk 0:02:59.6]} 6. Nc3 {[%clk 0:02:57.9]} 6... Nd7 {[%clk 0:02:57.7]} 7.
c5 {[%clk 0:02:57.3]} 7... Qxb3 {[%clk 0:02:57.4]} 8. axb3 {[%clk 0:02:58.2]}
8... a6 {[%clk 0:02:57.4]} 9. b4 {[%clk 0:02:58.4]} 9... Rc8 {[%clk 0:02:57.2]}
10. Nf3 {[%clk 0:02:57.8]} 10... h6 {[%clk 0:02:56.2]} 11. Nd2 {[%clk
0:02:58.1]} 11... Ngf6 {[%clk 0:02:55.6]} 12. Nb3 {[%clk 0:02:58.2]} 12... Nh5
{[%clk 0:02:53.8]} 13. Na5 {[%clk 0:02:49.7]} 13... Nxf4 {[%clk 0:02:53.5]} 14.
exf4 {[%clk 0:02:49.1]} 14... Rb8 {[%clk 0:02:54]} 15. Kd2 {[%clk 0:02:47.3]}
15... Be7 {[%clk 0:02:52.9]} 16. Bd3 {[%clk 0:02:47.3]} 16... Bxd3 {[%clk
0:02:52.3]} 17. Kxd3 {[%clk 0:02:47.6]} 17... h5 {[%clk 0:02:51.6]} 18. Rhe1
{[%clk 0:02:47.9]} 18... g6 {[%clk 0:02:51.6]} 19. g3 {[%clk 0:02:41.4]} 19...
Bd8 {[%clk 0:02:50.8]} 20. Nb1 {[%clk 0:02:38.6]} 20... Bxa5 {[%clk 0:02:49]}
21. bxa5 {[%clk 0:02:38.7]} 21... Kd8 {[%clk 0:02:49.4]} 22. Nd2 {[%clk
0:02:37.4]} 22... Kc7 {[%clk 0:02:50]} 23. Ra4 {[%clk 0:02:37]} 23... Nf6 {[%clk
0:02:46.2]} 24. h3 {[%clk 0:02:33.7]} 24... Nd7 {[%clk 0:02:43.5]} 25. Rb4
{[%clk 0:02:33.3]} 25... Rbf8 {[%clk 0:02:40.2]} 26. Nf3 {[%clk 0:02:32.7]}
26... Nf6 {[%clk 0:02:36.9]} 27. Re3 {[%clk 0:02:30.7]} 27... Rb8 {[%clk
0:02:27.1]} 28. Ne5 {[%clk 0:02:28.7]} 28... Rhf8 {[%clk 0:02:26.5]} 29. Ke2
{[%clk 0:02:27.8]} 29... Nd7 {[%clk 0:02:26.1]} 30. Nf3 {[%clk 0:02:25.8]} 30...
Nf6 {[%clk 0:02:21.7]} 31. Reb3 {[%clk 0:02:24.8]} 31... Nd7 {[%clk 0:02:06]}
32. Ke3 {[%clk 0:02:23.6]} 32... Nf6 {[%clk 0:02:00.1]} 33. Ne5 {[%clk
0:02:22.9]} 33... Ne4 {[%clk 0:01:54.8]} 34. Rb6 {[%clk 0:01:57.6]} 34... Nf6
{[%clk 0:01:52]} 35. f3 {[%clk 0:01:55.9]} 35... Ng8 {[%clk 0:01:48.1]} 36. g4
{[%clk 0:01:46.9]} 36... Ne7 {[%clk 0:01:47.4]} 37. Kf2 {[%clk 0:01:33.9]} 37...
h4 {[%clk 0:01:41.1]} 38. Ke3 {[%clk 0:01:31.1]} 38... f6 {[%clk 0:01:35.8]} 39.
Nd3 {[%clk 0:01:31]} 39... Nc8 {[%clk 0:01:28.3]} 40. Kf2 {[%clk 0:01:30.7]}
40... Nxb6 {[%clk 0:01:26.8]} 41. cxb6+ {[%clk 0:01:30.9]} 41... Kd6 {[%clk
0:01:26.5]} 42. Rc3 {[%clk 0:01:27.7]} 42... Rbe8 {[%clk 0:01:24.1]} 43. b4
{[%clk 0:01:21.2]} 43... Re7 {[%clk 0:01:21.5]} 44. Rc2 {[%clk 0:01:20.2]} 44...
Rg8 {[%clk 0:01:17.4]} 45. Re2 {[%clk 0:01:18.6]} 45... g5 {[%clk 0:01:15.2]}
46. fxg5 {[%clk 0:01:18.3]} 46... fxg5 {[%clk 0:01:14.9]} 47. Re5 {[%clk
0:01:16.2]} 47... Rg6 {[%clk 0:01:09.2]} 48. f4 {[%clk 0:01:02.9]} 48... gxf4
{[%clk 0:01:07.2]} 49. Kf3 {[%clk 0:01:03.4]} 49... Rf6 {[%clk 0:00:59.7]} 50.
Rh5 {[%clk 0:01:03.6]} 50... c5 {[%clk 0:00:47]} 51. bxc5+ {[%clk 0:00:34.4]}
51... Kc6 {[%clk 0:00:46.4]} 52. g5 {[%clk 0:00:34]} 52... Rf5 {[%clk
0:00:46.4]} 53. Rh6 {[%clk 0:00:14.9]} 53... Rxg5 {[%clk 0:00:44.1]} 54. Nxf4
{[%clk 0:00:15]} 54... Rg3+ {[%clk 0:00:44.2]} 55. Ke2 {[%clk 0:00:14.7]} 55...
Kb5 {[%clk 0:00:43.3]} 56. Rxh4 {[%clk 0:00:06.6]} 56... Kxa5 {[%clk 0:00:43.1]}
57. Rh6 {[%clk 0:00:06.9]} 57... Kb5 {[%clk 0:00:35]} 58. Nxe6 {[%clk
0:00:07.1]} 58... a5 {[%clk 0:00:33.1]} 59. Kf2 {[%clk 0:00:07.4]} 59... Rg8
{[%clk 0:00:28.1]} 60. Nc7+ {[%clk 0:00:07.8]} 60... Kc4 {[%clk 0:00:28.1]} 61.
c6 {[%clk 0:00:07.8]} 61... bxc6 {[%clk 0:00:27.8]} 62. Rxc6+ {[%clk 0:00:08.7]}
62... Kxd4 {[%clk 0:00:28.1]} 63. Nb5+ {[%clk 0:00:06.3]} 63... Ke5 {[%clk
0:00:28.4]} 64. Rc5 {[%clk 0:00:04.5]} 64... Rb8 {[%clk 0:00:28.2]} 65. Nc3
{[%clk 0:00:04.2]} 65... Rd7 {[%clk 0:00:26]} 66. Rxa5 {[%clk 0:00:04.2]} 66...
Rxb6 {[%clk 0:00:26.2]} 67. Ne2 {[%clk 0:00:04.9]} 67... Rf7+ {[%clk 0:00:24.1]}
68. Ke3 {[%clk 0:00:05.3]} 68... Rb3+ {[%clk 0:00:24.1]} 69. Kd2 {[%clk
0:00:05.9]} 69... Rxh3 {[%clk 0:00:24.7]} 70. Nc3 {[%clk 0:00:05.6]} 70... Rd7
{[%clk 0:00:22.2]} 71. Ne2 {[%clk 0:00:04.9]} 71... Ke4 {[%clk 0:00:19.6]} 72.
Ra4+ {[%clk 0:00:05.2]} 72... d4 {[%clk 0:00:19.2]} 73. Ra8 {[%clk 0:00:05.5]}
73... Rh2 {[%clk 0:00:17.7]} 74. Re8+ {[%clk 0:00:05.9]} 74... Kd5 {[%clk
0:00:17.4]} 75. Kd3 {[%clk 0:00:05.7]} 75... Rh3+ {[%clk 0:00:17.7]} 76. Kd2
{[%clk 0:00:06]} 76... d3 {[%clk 0:00:17.3]} 77. Nf4+ {[%clk 0:00:06.4]} 77...
Kd4 {[%clk 0:00:17.8]} 78. Nxh3 {[%clk 0:00:07.3]} 78... Rc7 {[%clk 0:00:17]}
79. Rd8+ {[%clk 0:00:07.9]} 79... Ke4 {[%clk 0:00:17.2]} 80. Nf2+ {[%clk
0:00:08.5]} 80... Kf3 {[%clk 0:00:16.9]} 81. Nxd3 {[%clk 0:00:09.1]} 81... Ke4
{[%clk 0:00:17.6]} 82. Re8+ {[%clk 0:00:09]} 82... Kd4 {[%clk 0:00:17]} 83. Rd8+
{[%clk 0:00:09.3]} 83... Ke4 {[%clk 0:00:16.9]} 84. Ne1 {[%clk 0:00:09.5]} 84...
Rc5 {[%clk 0:00:16.1]} 85. Re8+ {[%clk 0:00:10]} 85... Re5 {[%clk 0:00:16.5]}
86. Rg8 {[%clk 0:00:09.4]} 86... Rd5+ {[%clk 0:00:16.5]} 87. Ke2 {[%clk
0:00:10.1]} 87... Rf5 {[%clk 0:00:16.7]} 88. Re8+ {[%clk 0:00:09.7]} 88... Re5
{[%clk 0:00:16.8]} 89. Rh8 {[%clk 0:00:10.4]} 89... Ra5 {[%clk 0:00:16.2]} 90.
Nc2 {[%clk 0:00:09.7]} 90... Ra2 {[%clk 0:00:16.7]} 91. Rh4+ {[%clk 0:00:10]}
91... Ke5 {[%clk 0:00:16.5]} 92. Kd3 {[%clk 0:00:10.5]} 92... Ra6 {[%clk
0:00:16.2]} 93. Rh5+ {[%clk 0:00:10.4]} 93... Kf4 {[%clk 0:00:16.4]} 94. Rc5
{[%clk 0:00:09.2]} 94... Ra4 {[%clk 0:00:15.4]} 95. Nd4 {[%clk 0:00:08.8]} 95...
Ra3+ {[%clk 0:00:15.5]} 96. Kd2 {[%clk 0:00:08.4]} 96... Ke4 {[%clk 0:00:15.3]}
97. Nc2 {[%clk 0:00:08.4]} 97... Ra2 {[%clk 0:00:15.4]} 98. Rh5 {[%clk
0:00:08.8]} 98... Ra6 {[%clk 0:00:14.8]} 99. Rh4+ {[%clk 0:00:09.1]} 99... Kf3
{[%clk 0:00:14.9]} 100. Nd4+ {[%clk 0:00:09.4]} 100... Kg3 {[%clk 0:00:15.3]}
101. Re4 {[%clk 0:00:09.6]} 101... Ra3 {[%clk 0:00:14.4]} 102. Re8 {[%clk
0:00:09.3]} 102... Ra1 {[%clk 0:00:11.7]} 103. Rf8 {[%clk 0:00:09]} 103... Kg4
{[%clk 0:00:11.1]} 104. Kd3 {[%clk 0:00:09.4]} 104... Re1 {[%clk 0:00:10.5]}
105. Ne2 {[%clk 0:00:09.3]} 105... Ra1 {[%clk 0:00:10.2]} 106. Ke4 {[%clk
0:00:09.5]} 106... Ra4+ {[%clk 0:00:10.6]} 107. Nd4 {[%clk 0:00:10.2]} 107...
Ra5 {[%clk 0:00:10.5]} 108. Rg8+ {[%clk 0:00:10.5]} 108... Rg5 {[%clk
0:00:11.1]} 109. Rf8 {[%clk 0:00:11.2]} 109... Ra5 {[%clk 0:00:11.6]} 110. Rf1
{[%clk 0:00:10.7]} 110... Kg3 {[%clk 0:00:11.2]} 111. Nf5+ {[%clk 0:00:10.2]}
111... Kg4 {[%clk 0:00:10.7]} 112. Rg1+ {[%clk 0:00:09.8]} 112... Kh5 {[%clk
0:00:09.6]} 113. Kf4 {[%clk 0:00:09.8]} 113... Ra4+ {[%clk 0:00:10.1]} 114. Kf3
{[%clk 0:00:09.8]} 114... Ra3+ {[%clk 0:00:10.4]} 115. Ne3 {[%clk 0:00:10.4]}
115... Ra4 {[%clk 0:00:10.9]} 116. Rg8 {[%clk 0:00:09.8]} 116... Rb4 {[%clk
0:00:10.5]} 117. Kg3 {[%clk 0:00:10.1]} 117... Ra4 {[%clk 0:00:10.2]} 118. Rc8
{[%clk 0:00:06.7]} 118... Rb4 {[%clk 0:00:09.1]} 119. Kf3 {[%clk 0:00:05.2]}
119... Kg5 {[%clk 0:00:09.3]} 120. Rc5+ {[%clk 0:00:05.2]} 120... Kg6 {[%clk
0:00:08.8]} 121. Nd5 {[%clk 0:00:05.8]} 121... Ra4 {[%clk 0:00:08.4]} 122. Nf4+
{[%clk 0:00:05.6]} 122... Kf6 {[%clk 0:00:08.9]} 123. Kg4 {[%clk 0:00:06.1]}
123... Rb4 {[%clk 0:00:08.7]} 124. Kf3 {[%clk 0:00:05.6]} 124... Ra4 {[%clk
0:00:08.5]} 125. Ke3 {[%clk 0:00:06.1]} 125... Ra3+ {[%clk 0:00:07.1]} 126. Nd3
{[%clk 0:00:06.7]} 126... Ra4 {[%clk 0:00:07.3]} 127. Rc6+ {[%clk 0:00:07]}
127... Kf5 {[%clk 0:00:07.5]} 128. Rc8 {[%clk 0:00:07.1]} 128... Re4+ {[%clk
0:00:05.8]} 129. Kf3 {[%clk 0:00:07.3]} 129... Ra4 {[%clk 0:00:06.7]} 130. Rf8+
{[%clk 0:00:07.8]} 130... Kg6 {[%clk 0:00:07.1]} 131. Ne5+ {[%clk 0:00:08]}
1/2-1/2

[Event "Early-Titled-Tuesday-Blitz-April-02-2024"]
[Site "Chess.com"]
[Date "2024.04.02"]
[Round "8"]
[White "Casper"]
[Black "edgarhay012"]
[Result "0-1"]
[WhiteElo "2494"]
[BlackElo "2617"]
[TimeControl "180+1"]
[EndTime "9:22:33 PDT"]
[Termination "edgarhay012 won by resignation"]

1. e4 {[%clk 0:03:00.9]} 1... e6 {[%clk 0:02:55.9]} 2. Bd3 {[%clk 0:03:00.2]}
2... c5 {[%clk 0:02:55.4]} 3. Nf3 {[%clk 0:03:00.4]} 3... Nc6 {[%clk 0:02:54.9]}
4. O-O {[%clk 0:02:59.7]} 4... g6 {[%clk 0:02:53.1]} 5. c3 {[%clk 0:03:00]} 5...
Bg7 {[%clk 0:02:53.4]} 6. Bc2 {[%clk 0:03:00.7]} 6... Nge7 {[%clk 0:02:52.9]} 7.
d4 {[%clk 0:03:00.3]} 7... cxd4 {[%clk 0:02:52.4]} 8. cxd4 {[%clk 0:03:01.2]}
8... O-O {[%clk 0:02:53]} 9. Nc3 {[%clk 0:03:01.5]} 9... d6 {[%clk 0:02:49.9]}
10. Qe2 {[%clk 0:03:00.6]} 10... Bd7 {[%clk 0:02:50.4]} 11. Bg5 {[%clk
0:02:59.7]} 11... Nxd4 {[%clk 0:02:49]} 12. Nxd4 {[%clk 0:02:58.3]} 12... Bxd4
{[%clk 0:02:49.9]} 13. Nb5 {[%clk 0:02:58.1]} 13... Be5 {[%clk 0:02:41.4]} 14.
f4 {[%clk 0:02:55.6]} 14... Qb6+ {[%clk 0:02:39.8]} 15. Kh1 {[%clk 0:02:54.7]}
15... Bxb5 {[%clk 0:02:39.6]} 0-1

[Event "Early-Titled-Tuesday-Blitz-April-02-2024"]
[Site "Chess.com"]
[Date "2024.04.02"]
[Round "8"]
[White "Aradhya2000"]
[Black "JiaHaoxiang"]
[Result "1-0"]
[WhiteElo "2758"]
[BlackElo "2598"]
[TimeControl "180+1"]
[EndTime "9:23:56 PDT"]
[Termination "Aradhya2000 won by resignation"]

1. d4 {[%clk 0:03:00.9]} 1... d5 {[%clk 0:02:59.4]} 2. c4 {[%clk 0:03:00.9]}
2... c6 {[%clk 0:02:59.7]} 3. Nf3 {[%clk 0:03:01]} 3... Nf6 {[%clk 0:03:00]} 4.
Nc3 {[%clk 0:03:01.3]} 4... dxc4 {[%clk 0:03:00.3]} 5. a4 {[%clk 0:03:00.9]}
5... Bf5 {[%clk 0:03:00.6]} 6. e3 {[%clk 0:03:00.2]} 6... e6 {[%clk 0:03:01.1]}
7. Bxc4 {[%clk 0:03:00.9]} 7... Bb4 {[%clk 0:03:01.5]} 8. O-O {[%clk 0:03:01.4]}
8... O-O {[%clk 0:03:02.1]} 9. Nh4 {[%clk 0:03:02]} 9... Bg6 {[%clk 0:03:00.8]}
10. Nxg6 {[%clk 0:03:01.6]} 10... hxg6 {[%clk 0:03:00.9]} 11. Bd2 {[%clk
0:03:02.1]} 11... Nbd7 {[%clk 0:03:00.6]} 12. Bb3 {[%clk 0:02:58.1]} 12... e5
{[%clk 0:02:56.4]} 13. Qc2 {[%clk 0:02:57.7]} 13... exd4 {[%clk 0:02:55]} 14.
exd4 {[%clk 0:02:58.6]} 14... a5 {[%clk 0:02:54.3]} 15. Qxg6 {[%clk 0:02:57.7]}
15... Nc5 {[%clk 0:02:40.4]} 16. Bh6 {[%clk 0:02:42.7]} 16... Ne8 {[%clk
0:02:16.8]} 17. dxc5 {[%clk 0:02:40.9]} 17... Kh8 {[%clk 0:02:07]} 18. Bxg7+
{[%clk 0:02:34.1]} 18... Nxg7 {[%clk 0:02:05.4]} 19. Qh6+ {[%clk 0:02:34.6]}
19... Kg8 {[%clk 0:02:05.3]} 20. Ne4 {[%clk 0:02:25.4]} 1-0

[Event "Early-Titled-Tuesday-Blitz-April-02-2024"]
[Site "Chess.com"]
[Date "2024.04.02"]
[Round "8"]
[White "fmcabralis"]
[Black "KononenkoD"]
[Result "0-1"]
[WhiteElo "2410"]
[BlackElo "2629"]
[TimeControl "180+1"]
[EndTime "9:24:11 PDT"]
[Termination "KononenkoD won by resignation"]

1. e4 {[%clk 0:03:00.9]} 1... d5 {[%clk 0:02:57.9]} 2. exd5 {[%clk 0:03:00.8]}
2... Qxd5 {[%clk 0:02:58.7]} 3. Nc3 {[%clk 0:03:01.3]} 3... Qa5 {[%clk
0:02:59.2]} 4. d4 {[%clk 0:03:01.3]} 4... Nf6 {[%clk 0:02:59.7]} 5. Nf3 {[%clk
0:02:59.4]} 5... Bg4 {[%clk 0:02:56.7]} 6. h3 {[%clk 0:02:58.9]} 6... Bh5 {[%clk
0:02:57]} 7. g4 {[%clk 0:02:59.2]} 7... Bg6 {[%clk 0:02:57.5]} 8. Bg2 {[%clk
0:02:59.7]} 8... c6 {[%clk 0:02:57.4]} 9. O-O {[%clk 0:02:59.7]} 9... Nbd7
{[%clk 0:02:56]} 10. Ne5 {[%clk 0:02:56.9]} 10... Nxe5 {[%clk 0:02:55.1]} 11.
dxe5 {[%clk 0:02:57.1]} 11... Qxe5 {[%clk 0:02:55.2]} 12. Re1 {[%clk 0:02:56.8]}
12... Qc7 {[%clk 0:02:35.3]} 13. g5 {[%clk 0:02:45.4]} 13... Nd7 {[%clk
0:02:29.4]} 14. f4 {[%clk 0:02:41.4]} 14... e6 {[%clk 0:02:29.2]} 15. h4 {[%clk
0:02:21.4]} 15... Bc5+ {[%clk 0:02:24.1]} 16. Kh1 {[%clk 0:02:19.8]} 16... O-O-O
{[%clk 0:02:23.2]} 17. Qe2 {[%clk 0:02:07.2]} 17... h6 {[%clk 0:02:20.2]} 18.
Na4 {[%clk 0:01:55.2]} 18... hxg5 {[%clk 0:02:16.9]} 19. Nxc5 {[%clk 0:01:53.6]}
19... Rxh4+ {[%clk 0:02:14.5]} 20. Kg1 {[%clk 0:01:52.9]} 20... Nxc5 {[%clk
0:02:14.8]} 0-1